[Event "Titled Tuesday Blitz May 31 Late 2022"]
[White "Andreikin, Dmitry"]
[Black "Xiong, Jeffery"]
[WhiteFideId "4158814"]
[BlackFideId "2047640"]
[WhiteElo "2736"]
[BlackElo "2727"]
[Result "1-0"]
[Round "10"]
[TimeControl "180+1"]
[Date "2022.05.31"]
[WhiteClock "0:01:43"]
[BlackClock "0:01:33"]

1. d4 {[%clk 0:03:00]}  d5 {[%clk 0:03:00]} 2. c4 {[%clk 0:03:01]}  e6 {[%clk 0:03:00]} 3. Nf3 {[%clk 0:03:00]}  dxc4 {[%clk 0:03:00]} 4. e3 {[%clk 0:02:59]}  a6 {[%clk 0:03:01]} 5. Bxc4 {[%clk 0:02:59]}  Nf6 {[%clk 0:03:02]} 6. O-O {[%clk 0:02:58]}  c5 {[%clk 0:02:59]} 7. dxc5 {[%clk 0:02:57]}  Qxd1 {[%clk 0:02:58]} 8. Rxd1 {[%clk 0:02:57]}  Bxc5 {[%clk 0:02:59]} 9. Be2 {[%clk 0:02:55]}  O-O {[%clk 0:02:58]} 10. b3 {[%clk 0:02:55]}  b6 {[%clk 0:02:52]} 11. Nc3 {[%clk 0:02:54]}  Be7 {[%clk 0:02:50]} 12. Bb2 {[%clk 0:02:51]}  Bb7 {[%clk 0:02:50]} 13. Rac1 {[%clk 0:02:50]}  Nbd7 {[%clk 0:02:50]} 14. Nd4 {[%clk 0:02:38]}  Rfc8 {[%clk 0:02:48]} 15. Bf3 {[%clk 0:02:37]}  Bxf3 {[%clk 0:02:48]} 16. Nxf3 {[%clk 0:02:38]}  Nc5 {[%clk 0:02:36]} 17. Kf1 {[%clk 0:02:35]}  Kf8 {[%clk 0:02:36]} 18. Ne5 {[%clk 0:02:26]}  Ke8 {[%clk 0:02:36]} 19. Nc4 {[%clk 0:02:25]}  Rc6 {[%clk 0:02:28]} 20. Ne2 {[%clk 0:02:20]}  Rb8 {[%clk 0:02:16]} 21. Be5 {[%clk 0:02:13]}  Rb7 {[%clk 0:02:04]} 22. Nd4 {[%clk 0:02:09]}  Rc8 {[%clk 0:02:05]} 23. b4 {[%clk 0:01:56]}  Nce4 {[%clk 0:02:00]} 24. f3 {[%clk 0:01:54]}  b5 {[%clk 0:01:32]} 25. Na5 {[%clk 0:01:45]}  Rxc1 {[%clk 0:01:32]} 26. Rxc1 {[%clk 0:01:45]}  Nd2+ {[%clk 0:01:33]} 27. Ke2 {[%clk 0:01:43]} 1-0


[Site "https://www.chess.com"]

[Event "Titled Tuesday Blitz May 31 Late 2022"]
[White "Balabayeva, Xeniya"]
[Black "Svicevic, Rastko"]
[WhiteFideId "13719688"]
[BlackFideId "916315"]
[WhiteElo "1941"]
[BlackElo "2132"]
[Result "1-0"]
[Round "10"]
[TimeControl "180+1"]
[Date "2022.06.01"]
[WhiteClock "0:00:17"]
[BlackClock "0:00:01"]

1. e4 {[%clk 0:03:00]}  c6 {[%clk 0:03:00]} 2. d3 {[%clk 0:02:56]}  d5 {[%clk 0:03:01]} 3. Nf3 {[%clk 0:02:54]}  g6 {[%clk 0:03:02]} 4. e5 {[%clk 0:02:49]}  d4 {[%clk 0:03:00]} 5. Qe2 {[%clk 0:02:47]}  Bg7 {[%clk 0:02:59]} 6. h3 {[%clk 0:02:45]}  Nd7 {[%clk 0:02:59]} 7. g3 {[%clk 0:02:45]}  Nxe5 {[%clk 0:02:57]} 8. Nxe5 {[%clk 0:02:41]}  Qa5+ {[%clk 0:02:57]} 9. Bd2 {[%clk 0:02:41]}  Qxe5 {[%clk 0:02:57]} 10. Qxe5 {[%clk 0:02:40]}  Bxe5 {[%clk 0:02:57]} 11. Bg2 {[%clk 0:02:40]}  Be6 {[%clk 0:02:40]} 12. Na3 {[%clk 0:02:38]}  O-O-O {[%clk 0:02:39]} 13. O-O {[%clk 0:02:35]}  Nf6 {[%clk 0:02:38]} 14. Nc4 {[%clk 0:02:22]}  Bc7 {[%clk 0:02:37]} 15. a4 {[%clk 0:02:18]}  Bd5 {[%clk 0:02:33]} 16. Rae1 {[%clk 0:02:13]}  Bxg2 {[%clk 0:02:30]} 17. Kxg2 {[%clk 0:02:13]}  Nd5 {[%clk 0:02:25]} 18. b4 {[%clk 0:02:06]}  Rhe8 {[%clk 0:02:15]} 19. f4 {[%clk 0:02:03]}  b5 {[%clk 0:02:07]} 20. axb5 {[%clk 0:01:56]}  cxb5 {[%clk 0:02:08]} 21. Ne5 {[%clk 0:01:52]}  Bxe5 {[%clk 0:02:03]} 22. Rxe5 {[%clk 0:01:51]}  f6 {[%clk 0:01:57]} 23. Re4 {[%clk 0:01:48]}  e5 {[%clk 0:01:26]} 24. fxe5 {[%clk 0:01:47]}  fxe5 {[%clk 0:01:26]} 25. Rfe1 {[%clk 0:01:46]}  Kd7 {[%clk 0:01:21]} 26. Rxe5 {[%clk 0:01:43]}  Ne3+ {[%clk 0:01:20]} 27. R5xe3 {[%clk 0:01:35]}  dxe3 {[%clk 0:01:19]} 28. Bxe3 {[%clk 0:01:34]}  Rc8 {[%clk 0:01:14]} 29. Re2 {[%clk 0:01:32]}  Re6 {[%clk 0:01:05]} 30. Kf2 {[%clk 0:01:31]}  Rce8 {[%clk 0:01:04]} 31. c4 {[%clk 0:01:26]}  Kc6 {[%clk 0:01:02]} 32. Kf3 {[%clk 0:01:15]}  g5 {[%clk 0:00:55]} 33. g4 {[%clk 0:01:06]}  h6 {[%clk 0:00:54]} 34. Re1 {[%clk 0:01:05]}  a6 {[%clk 0:00:48]} 35. Kf2 {[%clk 0:00:58]}  Re5 {[%clk 0:00:44]} 36. Kf3 {[%clk 0:00:55]}  bxc4 {[%clk 0:00:39]} 37. dxc4 {[%clk 0:00:54]}  Re4 {[%clk 0:00:39]} 38. b5+ {[%clk 0:00:50]}  axb5 {[%clk 0:00:36]} 39. cxb5+ {[%clk 0:00:50]}  Kxb5 {[%clk 0:00:36]} 40. Rb1+ {[%clk 0:00:50]}  Kc4 {[%clk 0:00:36]} 41. Bf2 {[%clk 0:00:47]}  Rf4+ {[%clk 0:00:30]} 42. Kg3 {[%clk 0:00:44]}  Re2 {[%clk 0:00:30]} 43. Bg1 {[%clk 0:00:38]}  Kd3 {[%clk 0:00:24]} 44. Rb3+ {[%clk 0:00:34]}  Kc2 {[%clk 0:00:24]} 45. Rb6 {[%clk 0:00:31]}  Rc4 {[%clk 0:00:21]} 46. Bf2 {[%clk 0:00:25]}  Kc1 {[%clk 0:00:18]} 47. Rxh6 {[%clk 0:00:23]}  Rc3+ {[%clk 0:00:11]} 48. Kg2 {[%clk 0:00:23]}  Rcc2 {[%clk 0:00:11]} 49. Rf6 {[%clk 0:00:23]}  Kd1 {[%clk 0:00:10]} 50. Rf5 {[%clk 0:00:22]}  Ra2 {[%clk 0:00:08]} 51. Kf1 {[%clk 0:00:20]}  Reb2 {[%clk 0:00:03]} 52. Kg2 {[%clk 0:00:19]}  Kc1 {[%clk 0:00:02]} 53. Kf1 {[%clk 0:00:19]}  Kb1 {[%clk 0:00:02]} 54. Kg2 {[%clk 0:00:18]}  Rc2 {[%clk 0:00:02]} 55. Kf1 {[%clk 0:00:17]}  Rc1+ {[%clk 0:00:02]} 56. Kg2 {[%clk 0:00:17]}  Rcc2 {[%clk 0:00:02]} 57. Rb5+ {[%clk 0:00:17]}  Kc1 {[%clk 0:00:01]} 58. Rf5 {[%clk 0:00:18]}  Kd1 {[%clk 0:00:01]} 59. Kf1 {[%clk 0:00:18]}  Rd2 {[%clk 0:00:01]} 60. Kg2 {[%clk 0:00:17]}  Rac2 {[%clk 0:00:01]} 61. Kf1 {[%clk 0:00:17]} 1-0


[Site "https://www.chess.com"]

[Event "Titled Tuesday Blitz May 31 Late 2022"]
[White "Cruz Mendez, Jean Marco"]
[Black "Reprintsev, Alexander"]
[WhiteFideId "3526402"]
[BlackFideId "14100541"]
[WhiteElo "2064"]
[BlackElo "2108"]
[Result "1/2-1/2"]
[Round "10"]
[TimeControl "180+1"]
[Date "2022.06.01"]
[WhiteClock "0:00:16"]
[BlackClock "0:00:03"]

1. Nf3 {[%clk 0:02:59]}  d5 {[%clk 0:02:52]} 2. b3 {[%clk 0:02:59]}  Bf5 {[%clk 0:02:50]} 3. Bb2 {[%clk 0:03:00]}  e6 {[%clk 0:02:50]} 4. d3 {[%clk 0:03:00]}  Nd7 {[%clk 0:02:49]} 5. Nbd2 {[%clk 0:03:00]}  h6 {[%clk 0:02:49]} 6. g3 {[%clk 0:03:00]}  Ngf6 {[%clk 0:02:49]} 7. Bg2 {[%clk 0:03:01]}  Be7 {[%clk 0:02:49]} 8. O-O {[%clk 0:03:01]}  O-O {[%clk 0:02:49]} 9. Re1 {[%clk 0:03:01]}  Bh7 {[%clk 0:02:47]} 10. e4 {[%clk 0:03:01]}  dxe4 {[%clk 0:02:31]} 11. dxe4 {[%clk 0:03:02]}  Nc5 {[%clk 0:02:31]} 12. e5 {[%clk 0:03:01]}  Nfe4 {[%clk 0:02:30]} 13. Nxe4 {[%clk 0:02:58]}  Nxe4 {[%clk 0:02:25]} 14. Nd4 {[%clk 0:02:52]}  Nc5 {[%clk 0:02:13]} 15. h4 {[%clk 0:02:50]}  c6 {[%clk 0:02:12]} 16. Rc1 {[%clk 0:02:47]}  a5 {[%clk 0:02:11]} 17. a3 {[%clk 0:02:45]}  Qb6 {[%clk 0:02:09]} 18. Qg4 {[%clk 0:02:40]}  Rad8 {[%clk 0:02:04]} 19. Bf1 {[%clk 0:02:22]}  Na4 {[%clk 0:01:47]} 20. Ba1 {[%clk 0:02:15]}  Bxa3 {[%clk 0:01:46]} 21. bxa4 {[%clk 0:02:13]}  Bxc1 {[%clk 0:01:46]} 22. Rxc1 {[%clk 0:02:13]}  Qb4 {[%clk 0:01:41]} 23. c3 {[%clk 0:01:51]}  Qxa4 {[%clk 0:01:39]} 24. Qe2 {[%clk 0:01:47]}  c5 {[%clk 0:01:22]} 25. Nb5 {[%clk 0:01:45]}  Bd3 {[%clk 0:01:20]} 26. Qb2 {[%clk 0:01:46]}  Bxf1 {[%clk 0:01:16]} 27. Rxf1 {[%clk 0:01:46]}  Rd5 {[%clk 0:01:10]} 28. Nd6 {[%clk 0:01:37]}  c4 {[%clk 0:01:02]} 29. Qxb7 {[%clk 0:01:25]}  Rxe5 {[%clk 0:00:53]} 30. Qc7 {[%clk 0:01:24]}  Re2 {[%clk 0:00:41]} 31. Qxc4 {[%clk 0:01:08]}  Qc2 {[%clk 0:00:29]} 32. Qf4 {[%clk 0:01:02]}  e5 {[%clk 0:00:26]} 33. Qg4 {[%clk 0:01:00]}  g6 {[%clk 0:00:15]} 34. c4 {[%clk 0:00:57]}  Kh7 {[%clk 0:00:13]} 35. h5 {[%clk 0:00:55]}  Qd3 {[%clk 0:00:09]} 36. hxg6+ {[%clk 0:00:53]}  fxg6 {[%clk 0:00:08]} 37. Qd7+ {[%clk 0:00:54]}  Kg8 {[%clk 0:00:07]} 38. Qe6+ {[%clk 0:00:52]}  Kg7 {[%clk 0:00:05]} 39. Bxe5+ {[%clk 0:00:52]}  Rxe5 {[%clk 0:00:05]} 40. Qxe5+ {[%clk 0:00:53]}  Kg8 {[%clk 0:00:05]} 41. Ne4 {[%clk 0:00:51]}  Qxc4 {[%clk 0:00:03]} 42. Nf6+ {[%clk 0:00:50]}  Kf7 {[%clk 0:00:03]} 43. Ne4 {[%clk 0:00:46]}  Qe6 {[%clk 0:00:02]} 44. Qxe6+ {[%clk 0:00:44]}  Kxe6 {[%clk 0:00:02]} 45. Ra1 {[%clk 0:00:45]}  Ra8 {[%clk 0:00:02]} 46. Kg2 {[%clk 0:00:42]}  Kd5 {[%clk 0:00:02]} 47. Nf6+ {[%clk 0:00:40]}  Kd4 {[%clk 0:00:01]} 48. Ng4 {[%clk 0:00:41]}  h5 {[%clk 0:00:01]} 49. Ne3 {[%clk 0:00:40]}  a4 {[%clk 0:00:02]} 50. Kf3 {[%clk 0:00:39]}  Kc3 {[%clk 0:00:02]} 51. Nd1+ {[%clk 0:00:33]}  Kc2 {[%clk 0:00:02]} 52. Kf4 {[%clk 0:00:32]}  a3 {[%clk 0:00:02]} 53. Kg5 {[%clk 0:00:30]}  Ra6 {[%clk 0:00:02]} 54. f4 {[%clk 0:00:22]}  a2 {[%clk 0:00:02]} 55. Kh4 {[%clk 0:00:18]}  Kd2 {[%clk 0:00:02]} 56. Nb2 {[%clk 0:00:16]}  Kc2 {[%clk 0:00:02]} 57. Nc4 {[%clk 0:00:16]}  Kb3 {[%clk 0:00:02]} 58. Ne3 {[%clk 0:00:13]}  Kb2 {[%clk 0:00:03]} 59. Rh1 {[%clk 0:00:12]}  a1=Q {[%clk 0:00:03]} 60. Rxa1 {[%clk 0:00:13]}  Rxa1 {[%clk 0:00:03]} 61. Kg5 {[%clk 0:00:11]}  Rg1 {[%clk 0:00:03]} 62. Kxg6 {[%clk 0:00:10]}  Rxg3+ {[%clk 0:00:03]} 63. Kxh5 {[%clk 0:00:10]}  Rxe3 {[%clk 0:00:03]} 64. f5 {[%clk 0:00:11]}  Kc3 {[%clk 0:00:04]} 65. Kg6 {[%clk 0:00:12]}  Kd4 {[%clk 0:00:04]} 66. f6 {[%clk 0:00:13]}  Ke5 {[%clk 0:00:04]} 67. f7 {[%clk 0:00:13]}  Rg3+ {[%clk 0:00:04]} 68. Kh7 {[%clk 0:00:14]}  Rh3+ {[%clk 0:00:04]} 69. Kg8 {[%clk 0:00:14]}  Rg3+ {[%clk 0:00:03]} 70. Kh8 {[%clk 0:00:14]}  Rf3 {[%clk 0:00:03]} 71. Kg8 {[%clk 0:00:15]}  Rg3+ {[%clk 0:00:03]} 72. Kh8 {[%clk 0:00:15]}  Rf3 {[%clk 0:00:03]} 73. Kg8 {[%clk 0:00:16]}  Rg3+ {[%clk 0:00:03]} 1/2-1/2


[Site "https://www.chess.com"]

[Event "Titled Tuesday Blitz May 31 Late 2022"]
[White "Daeschler, Florian"]
[Black "Pinheiro, Iung Alicio de O."]
[WhiteFideId "20678193"]
[BlackFideId "2104350"]
[WhiteElo "2195"]
[BlackElo "2283"]
[Result "1-0"]
[Round "10"]
[TimeControl "180+1"]
[Date "2022.06.01"]
[WhiteClock "0:00:20"]
[BlackClock "0:00:04"]

1. d4 {[%clk 0:03:00]}  Nf6 {[%clk 0:02:58]} 2. c4 {[%clk 0:03:01]}  g6 {[%clk 0:02:57]} 3. Nc3 {[%clk 0:03:01]}  d5 {[%clk 0:02:57]} 4. Bf4 {[%clk 0:03:01]}  Bg7 {[%clk 0:02:56]} 5. Rc1 {[%clk 0:03:00]}  c6 {[%clk 0:01:59]} 6. e3 {[%clk 0:03:00]}  O-O {[%clk 0:01:48]} 7. h3 {[%clk 0:02:59]}  Bf5 {[%clk 0:01:42]} 8. Nf3 {[%clk 0:02:59]}  Ne4 {[%clk 0:01:31]} 9. cxd5 {[%clk 0:02:53]}  Nxc3 {[%clk 0:01:25]} 10. Rxc3 {[%clk 0:02:52]}  Qxd5 {[%clk 0:01:20]} 11. Bc4 {[%clk 0:02:50]}  Qa5 {[%clk 0:01:19]} 12. O-O {[%clk 0:02:49]}  Nd7 {[%clk 0:01:19]} 13. a3 {[%clk 0:02:42]}  e5 {[%clk 0:01:18]} 14. b4 {[%clk 0:02:20]}  Qc7 {[%clk 0:01:17]} 15. Bg3 {[%clk 0:02:15]}  Rad8 {[%clk 0:01:12]} 16. Rc1 {[%clk 0:02:10]}  Qb6 {[%clk 0:01:05]} 17. Qb3 {[%clk 0:01:40]}  exd4 {[%clk 0:00:57]} 18. Nxd4 {[%clk 0:01:40]}  Be4 {[%clk 0:00:46]} 19. Rfd1 {[%clk 0:01:36]}  Ne5 {[%clk 0:00:41]} 20. Be2 {[%clk 0:01:24]}  Bd5 {[%clk 0:00:41]} 21. Qc2 {[%clk 0:01:22]}  Rfe8 {[%clk 0:00:40]} 22. Bh4 {[%clk 0:01:18]}  Rc8 {[%clk 0:00:36]} 23. Nb3 {[%clk 0:01:05]}  Nd7 {[%clk 0:00:35]} 24. Bg4 {[%clk 0:00:26]}  f5 {[%clk 0:00:26]} 25. Be2 {[%clk 0:00:24]}  Nf6 {[%clk 0:00:24]} 26. Bc4 {[%clk 0:00:22]}  Bxc4 {[%clk 0:00:21]} 27. Qxc4+ {[%clk 0:00:22]}  Nd5 {[%clk 0:00:22]} 28. Nc5 {[%clk 0:00:20]}  h6 {[%clk 0:00:20]} 29. Bg3 {[%clk 0:00:20]}  Qd8 {[%clk 0:00:19]} 30. e4 {[%clk 0:00:19]}  fxe4 {[%clk 0:00:19]} 31. Nxe4 {[%clk 0:00:20]}  Rf8 {[%clk 0:00:13]} 32. Nd6 {[%clk 0:00:20]}  Ra8 {[%clk 0:00:11]} 33. Nxb7 {[%clk 0:00:19]}  Qb6 {[%clk 0:00:10]} 34. Qxc6 {[%clk 0:00:19]}  Qxc6 {[%clk 0:00:08]} 35. Rxc6 {[%clk 0:00:20]}  Nc3 {[%clk 0:00:09]} 36. Rd7 {[%clk 0:00:18]}  Ne2+ {[%clk 0:00:08]} 37. Kh2 {[%clk 0:00:19]}  Nxg3 {[%clk 0:00:06]} 38. fxg3 {[%clk 0:00:20]}  Be5 {[%clk 0:00:04]} 39. Rxg6+ {[%clk 0:00:20]}  Kh8 {[%clk 0:00:03]} 40. Rxh6+ {[%clk 0:00:20]}  Kg8 {[%clk 0:00:04]} 41. Rg6+ {[%clk 0:00:20]}  Kh8 {[%clk 0:00:04]} 42. Nc5 {[%clk 0:00:20]}  Rae8 {[%clk 0:00:04]} 43. Ne4 {[%clk 0:00:20]} 1-0


[Site "https://www.chess.com"]

[Event "Titled Tuesday Blitz May 31 Late 2022"]
[White "Estrada Nieto, Julian"]
[Black "Terletsky, Oleg"]
[WhiteFideId "5101018"]
[BlackFideId "14116774"]
[WhiteElo "2252"]
[BlackElo "2064"]
[Result "1-0"]
[Round "10"]
[TimeControl "180+1"]
[Date "2022.06.01"]
[WhiteClock "0:00:06"]
[BlackClock "0:00:14"]

1. e4 {[%clk 0:03:00]}  e5 {[%clk 0:02:59]} 2. Nf3 {[%clk 0:02:59]}  Nc6 {[%clk 0:02:59]} 3. Bb5 {[%clk 0:03:00]}  a6 {[%clk 0:02:59]} 4. Ba4 {[%clk 0:02:59]}  Nf6 {[%clk 0:02:59]} 5. O-O {[%clk 0:02:59]}  Be7 {[%clk 0:02:57]} 6. Re1 {[%clk 0:02:58]}  b5 {[%clk 0:02:57]} 7. Bb3 {[%clk 0:02:59]}  d6 {[%clk 0:02:58]} 8. a4 {[%clk 0:02:57]}  Bg4 {[%clk 0:02:56]} 9. c3 {[%clk 0:02:53]}  b4 {[%clk 0:02:53]} 10. h3 {[%clk 0:02:47]}  Bd7 {[%clk 0:02:50]} 11. a5 {[%clk 0:02:43]}  O-O {[%clk 0:02:43]} 12. d4 {[%clk 0:02:37]}  Rb8 {[%clk 0:02:38]} 13. Bc4 {[%clk 0:02:35]}  bxc3 {[%clk 0:02:34]} 14. Nxc3 {[%clk 0:02:27]}  exd4 {[%clk 0:02:09]} 15. Nxd4 {[%clk 0:02:27]}  Nb4 {[%clk 0:02:09]} 16. Bf4 {[%clk 0:02:04]}  Nc6 {[%clk 0:01:17]} 17. Nxc6 {[%clk 0:01:21]}  Bxc6 {[%clk 0:01:18]} 18. b3 {[%clk 0:01:19]}  Ra8 {[%clk 0:01:02]} 19. Qd3 {[%clk 0:01:18]}  Nd7 {[%clk 0:01:00]} 20. b4 {[%clk 0:01:13]}  Ne5 {[%clk 0:00:59]} 21. Bxe5 {[%clk 0:01:01]}  dxe5 {[%clk 0:01:00]} 22. Rab1 {[%clk 0:00:46]}  Qxd3 {[%clk 0:00:52]} 23. Bxd3 {[%clk 0:00:46]}  Rfb8 {[%clk 0:00:51]} 24. Na2 {[%clk 0:00:23]}  Bd6 {[%clk 0:00:43]} 25. Rec1 {[%clk 0:00:21]}  Bd7 {[%clk 0:00:36]} 26. Bc4 {[%clk 0:00:20]}  Ra7 {[%clk 0:00:29]} 27. Bd5 {[%clk 0:00:20]}  c6 {[%clk 0:00:28]} 28. Bxc6 {[%clk 0:00:17]}  Kf8 {[%clk 0:00:16]} 29. Bxd7 {[%clk 0:00:14]}  Rxd7 {[%clk 0:00:17]} 30. Rd1 {[%clk 0:00:14]}  Ke7 {[%clk 0:00:17]} 31. Rd5 {[%clk 0:00:11]}  Rdb7 {[%clk 0:00:14]} 32. Kf1 {[%clk 0:00:08]}  Kf6 {[%clk 0:00:13]} 33. Rxd6+ {[%clk 0:00:06]}  Ke7 {[%clk 0:00:14]} 34. Rxa6 {[%clk 0:00:06]} 1-0


[Site "https://www.chess.com"]

[Event "Titled Tuesday Blitz May 31 Late 2022"]
[White "Fishbein, Alexander"]
[Black "Gurevich, Dmitry"]
[WhiteFideId "2000377"]
[BlackFideId "2000407"]
[WhiteElo "2442"]
[BlackElo "2506"]
[Result "0-1"]
[Round "10"]
[TimeControl "180+1"]
[Date "2022.05.31"]
[WhiteClock "0:00:03"]
[BlackClock "0:00:05"]

1. e4 {[%clk 0:03:00]}  c5 {[%clk 0:02:58]} 2. Nf3 {[%clk 0:03:00]}  d6 {[%clk 0:02:59]} 3. d4 {[%clk 0:02:59]}  cxd4 {[%clk 0:02:59]} 4. Nxd4 {[%clk 0:03:00]}  Nf6 {[%clk 0:02:59]} 5. Nc3 {[%clk 0:03:00]}  Nc6 {[%clk 0:02:59]} 6. Be2 {[%clk 0:02:56]}  g6 {[%clk 0:02:59]} 7. Nb3 {[%clk 0:02:55]}  Bg7 {[%clk 0:02:58]} 8. O-O {[%clk 0:02:56]}  a6 {[%clk 0:02:58]} 9. Bg5 {[%clk 0:02:54]}  h6 {[%clk 0:02:55]} 10. Be3 {[%clk 0:02:51]}  b5 {[%clk 0:02:54]} 11. a4 {[%clk 0:02:45]}  b4 {[%clk 0:02:53]} 12. Nd5 {[%clk 0:02:45]}  Nxd5 {[%clk 0:02:49]} 13. exd5 {[%clk 0:02:46]}  Ne5 {[%clk 0:02:47]} 14. a5 {[%clk 0:02:39]}  Bb7 {[%clk 0:02:35]} 15. Bb6 {[%clk 0:02:29]}  Qc8 {[%clk 0:02:28]} 16. Bd4 {[%clk 0:02:17]}  O-O {[%clk 0:02:26]} 17. f4 {[%clk 0:02:17]}  Nd7 {[%clk 0:02:25]} 18. Bxg7 {[%clk 0:02:17]}  Kxg7 {[%clk 0:02:25]} 19. Bg4 {[%clk 0:02:09]}  Qc7 {[%clk 0:02:07]} 20. Bxd7 {[%clk 0:02:07]}  Qxd7 {[%clk 0:02:06]} 21. Qd4+ {[%clk 0:02:07]}  Kg8 {[%clk 0:02:03]} 22. f5 {[%clk 0:02:05]}  Rac8 {[%clk 0:01:54]} 23. Rae1 {[%clk 0:01:46]}  Rxc2 {[%clk 0:01:20]} 24. fxg6 {[%clk 0:01:43]}  e5 {[%clk 0:01:20]} 25. Qe4 {[%clk 0:01:13]}  Rxb2 {[%clk 0:01:18]} 26. gxf7+ {[%clk 0:01:06]}  Rxf7 {[%clk 0:01:17]} 27. Nd4 {[%clk 0:00:49]}  Rg7 {[%clk 0:00:50]} 28. Nc2 {[%clk 0:00:36]}  Qg4 {[%clk 0:00:43]} 29. Qxg4 {[%clk 0:00:27]}  Rxg4 {[%clk 0:00:42]} 30. Ne3 {[%clk 0:00:27]}  Bxd5 {[%clk 0:00:34]} 31. Rf6 {[%clk 0:00:13]}  Re4 {[%clk 0:00:21]} 32. Rxd6 {[%clk 0:00:09]}  Bc4 {[%clk 0:00:17]} 33. Rdd1 {[%clk 0:00:08]}  b3 {[%clk 0:00:15]} 34. Nf5 {[%clk 0:00:07]}  Rxe1+ {[%clk 0:00:13]} 35. Rxe1 {[%clk 0:00:08]}  Rc2 {[%clk 0:00:13]} 36. Ne3 {[%clk 0:00:06]}  Rc3 {[%clk 0:00:11]} 37. Kf2 {[%clk 0:00:06]}  Bd3 {[%clk 0:00:08]} 38. Nd1 {[%clk 0:00:05]}  Rc1 {[%clk 0:00:07]} 39. Ne3 {[%clk 0:00:02]}  b2 {[%clk 0:00:07]} 40. Rxc1 {[%clk 0:00:01]}  bxc1=Q {[%clk 0:00:06]} 41. Nd5 {[%clk 0:00:02]}  Qd2+ {[%clk 0:00:06]} 42. Kg3 {[%clk 0:00:03]}  Qe1+ {[%clk 0:00:05]} 43. Kh3 {[%clk 0:00:02]}  Kg7 {[%clk 0:00:05]} 44. g4 {[%clk 0:00:03]}  Be4 {[%clk 0:00:05]} 45. Ne3 {[%clk 0:00:04]}  Qxe3+ {[%clk 0:00:05]} 46. Kh4 {[%clk 0:00:03]}  Bg2 {[%clk 0:00:05]} 0-1


[Site "https://www.chess.com"]

[Event "Titled Tuesday Blitz May 31 Late 2022"]
[White "Florescu, Codrut-Constantin"]
[Black "Beulen, Marcel"]
[WhiteFideId "1202200"]
[BlackFideId "1001450"]
[WhiteElo "2191"]
[BlackElo "2375"]
[Result "0-1"]
[Round "10"]
[TimeControl "180+1"]
[Date "2022.06.01"]
[WhiteClock "0:00:22"]
[BlackClock "0:00:08"]

1. d4 {[%clk 0:03:00]}  d5 {[%clk 0:02:59]} 2. Nf3 {[%clk 0:03:00]}  Nf6 {[%clk 0:02:59]} 3. c3 {[%clk 0:03:00]}  Bf5 {[%clk 0:02:58]} 4. Bf4 {[%clk 0:02:59]}  e6 {[%clk 0:02:56]} 5. e3 {[%clk 0:02:59]}  Nbd7 {[%clk 0:02:54]} 6. h3 {[%clk 0:02:59]}  c6 {[%clk 0:02:53]} 7. c4 {[%clk 0:02:58]}  Bxb1 {[%clk 0:02:49]} 8. Qxb1 {[%clk 0:02:56]}  Bb4+ {[%clk 0:02:47]} 9. Kd1 {[%clk 0:02:56]}  O-O {[%clk 0:02:38]} 10. Bd3 {[%clk 0:02:55]}  dxc4 {[%clk 0:02:35]} 11. Bxc4 {[%clk 0:02:54]}  c5 {[%clk 0:02:25]} 12. a3 {[%clk 0:02:51]}  cxd4 {[%clk 0:02:21]} 13. axb4 {[%clk 0:02:44]}  dxe3 {[%clk 0:02:20]} 14. Ke2 {[%clk 0:02:39]}  exf2 {[%clk 0:02:17]} 15. Kxf2 {[%clk 0:02:31]}  Qb6+ {[%clk 0:02:10]} 16. Be3 {[%clk 0:02:31]}  Qxb4 {[%clk 0:02:09]} 17. Bd3 {[%clk 0:02:26]}  e5 {[%clk 0:02:04]} 18. Bf5 {[%clk 0:02:08]}  Rfe8 {[%clk 0:01:29]} 19. Rd1 {[%clk 0:01:57]}  e4 {[%clk 0:01:21]} 20. Bxd7 {[%clk 0:01:43]}  Nxd7 {[%clk 0:01:20]} 21. Rd4 {[%clk 0:01:35]}  Qe7 {[%clk 0:01:17]} 22. Nd2 {[%clk 0:01:25]}  f5 {[%clk 0:01:14]} 23. Kg1 {[%clk 0:01:18]}  Ne5 {[%clk 0:01:10]} 24. Qf1 {[%clk 0:01:14]}  Qe6 {[%clk 0:01:01]} 25. Nc4 {[%clk 0:01:09]}  Nd3 {[%clk 0:01:00]} 26. Nd6 {[%clk 0:00:50]}  Rf8 {[%clk 0:00:55]} 27. Bf4 {[%clk 0:00:36]}  Rad8 {[%clk 0:00:34]} 28. Rxd3 {[%clk 0:00:19]}  exd3 {[%clk 0:00:33]} 29. Qxd3 {[%clk 0:00:20]}  g5 {[%clk 0:00:30]} 30. Bh2 {[%clk 0:00:19]}  f4 {[%clk 0:00:31]} 31. Rd1 {[%clk 0:00:19]}  Rf6 {[%clk 0:00:29]} 32. h4 {[%clk 0:00:19]}  Rxd6 {[%clk 0:00:28]} 33. Qc2 {[%clk 0:00:17]}  g4 {[%clk 0:00:18]} 34. Kh1 {[%clk 0:00:15]}  Rxd1+ {[%clk 0:00:12]} 35. Qxd1 {[%clk 0:00:16]}  f3 {[%clk 0:00:12]} 36. gxf3 {[%clk 0:00:16]}  gxf3 {[%clk 0:00:12]} 37. Qg1+ {[%clk 0:00:15]}  Rg6 {[%clk 0:00:12]} 38. Qd4 {[%clk 0:00:16]}  Qe1+ {[%clk 0:00:11]} 39. Bg1 {[%clk 0:00:17]}  f2 {[%clk 0:00:06]} 40. Qxf2 {[%clk 0:00:16]}  Qxf2 {[%clk 0:00:05]} 41. Bxf2 {[%clk 0:00:17]}  Rg4 {[%clk 0:00:05]} 42. Kh2 {[%clk 0:00:17]}  Rb4 {[%clk 0:00:05]} 43. Kg3 {[%clk 0:00:17]}  a6 {[%clk 0:00:05]} 44. Ba7 {[%clk 0:00:18]}  Kf7 {[%clk 0:00:05]} 45. Bc5 {[%clk 0:00:18]}  Rxb2 {[%clk 0:00:03]} 46. Bd4 {[%clk 0:00:18]}  Rb3+ {[%clk 0:00:02]} 47. Kf4 {[%clk 0:00:19]}  b6 {[%clk 0:00:02]} 48. Kf5 {[%clk 0:00:20]}  a5 {[%clk 0:00:03]} 49. Be5 {[%clk 0:00:21]}  a4 {[%clk 0:00:04]} 50. h5 {[%clk 0:00:22]}  a3 {[%clk 0:00:05]} 51. h6 {[%clk 0:00:22]}  a2 {[%clk 0:00:06]} 52. Ke4 {[%clk 0:00:22]}  Rh3 {[%clk 0:00:07]} 53. Bf4 {[%clk 0:00:21]}  Rh5 {[%clk 0:00:07]} 54. Kf3 {[%clk 0:00:21]}  Kg6 {[%clk 0:00:08]} 55. Kg4 {[%clk 0:00:22]}  Rxh6 {[%clk 0:00:08]} 0-1


[Site "https://www.chess.com"]